[Event "January 9 Late 2024"]
[Site "https://www.chess.com"]
[Date "2024.01.09"]
[Round "7"]
[White "Shankland, Sam"]
[Black "Sherman, Raem"]
[Result "1-0"]
[Board "33"]
[TimeControl "180+1"]
[WhiteFideId "2004887"]
[BlackFideId "2822288"]
[WhiteElo "2961"]
[BlackElo "2666"]
[WhiteTeam "USA"]
[BlackTeam "ISR"]
[WhiteClock "0:00:32"]
[BlackClock "0:00:09"]

1. e4 {[%clk 0:03:00]}  e6 {[%clk 0:02:59]} 2. d4 {[%clk 0:03:00]}  d5 {[%clk 0:02:59]} 3. Nd2 {[%clk 0:03:00]}  c5 {[%clk 0:02:59]} 4. exd5 {[%clk 0:03:00]}  Qxd5 {[%clk 0:02:59]} 5. Ngf3 {[%clk 0:03:00]}  cxd4 {[%clk 0:03:00]} 6. Bc4 {[%clk 0:03:00]}  Qd6 {[%clk 0:03:00]} 7. O-O {[%clk 0:03:00]}  Nf6 {[%clk 0:03:01]} 8. Nb3 {[%clk 0:03:00]}  Nc6 {[%clk 0:03:01]} 9. Nbxd4 {[%clk 0:03:00]}  Nxd4 {[%clk 0:03:02]} 10. Nxd4 {[%clk 0:03:00]}  Be7 {[%clk 0:03:01]} 11. Re1 {[%clk 0:02:58]}  O-O {[%clk 0:03:00]} 12. b3 {[%clk 0:02:58]}  a6 {[%clk 0:02:57]} 13. a4 {[%clk 0:02:58]}  Qc7 {[%clk 0:02:48]} 14. Qf3 {[%clk 0:02:57]}  Rd8 {[%clk 0:02:45]} 15. Bb2 {[%clk 0:02:54]}  Bd7 {[%clk 0:02:39]} 16. Nf5 {[%clk 0:02:53]}  Bc6 {[%clk 0:02:19]} 17. Nxe7+ {[%clk 0:02:24]}  Qxe7 {[%clk 0:02:20]} 18. Qg3 {[%clk 0:02:24]}  b5 {[%clk 0:02:12]} 19. axb5 {[%clk 0:02:23]}  axb5 {[%clk 0:02:13]} 20. Bd3 {[%clk 0:02:23]}  Ne8 {[%clk 0:01:43]} 21. h4 {[%clk 0:02:22]}  Qc5 {[%clk 0:01:22]} 22. Rxa8 {[%clk 0:01:58]}  Rxa8 {[%clk 0:01:20]} 23. Re5 {[%clk 0:01:59]}  Qd6 {[%clk 0:01:18]} 24. Kh2 {[%clk 0:01:48]}  b4 {[%clk 0:01:14]} 25. h5 {[%clk 0:01:35]}  h6 {[%clk 0:01:07]} 26. Bc1 {[%clk 0:01:14]}  f6 {[%clk 0:01:04]} 27. Re2 {[%clk 0:01:11]}  Qxg3+ {[%clk 0:01:03]} 28. Kxg3 {[%clk 0:01:12]}  e5 {[%clk 0:01:01]} 29. Bd2 {[%clk 0:01:12]}  Rb8 {[%clk 0:00:57]} 30. f4 {[%clk 0:01:12]}  exf4+ {[%clk 0:00:45]} 31. Bxf4 {[%clk 0:01:11]}  Rb7 {[%clk 0:00:44]} 32. Bg6 {[%clk 0:01:06]}  Kf8 {[%clk 0:00:43]} 33. Rxe8+ {[%clk 0:00:47]}  Bxe8 {[%clk 0:00:43]} 34. Bd6+ {[%clk 0:00:47]}  Kg8 {[%clk 0:00:30]} 35. Bxe8 {[%clk 0:00:47]}  Rb6 {[%clk 0:00:29]} 36. Bc5 {[%clk 0:00:45]}  Rb8 {[%clk 0:00:28]} 37. Bg6 {[%clk 0:00:45]}  Rb5 {[%clk 0:00:27]} 38. Be3 {[%clk 0:00:42]}  Kh8 {[%clk 0:00:25]} 39. Kf2 {[%clk 0:00:42]}  Rd5 {[%clk 0:00:20]} 40. Ke2 {[%clk 0:00:42]}  f5 {[%clk 0:00:20]} 41. Bd2 {[%clk 0:00:41]}  Re5+ {[%clk 0:00:20]} 42. Kf3 {[%clk 0:00:39]}  Rb5 {[%clk 0:00:18]} 43. Kf4 {[%clk 0:00:37]}  Rd5 {[%clk 0:00:19]} 44. Be3 {[%clk 0:00:36]}  Kg8 {[%clk 0:00:15]} 45. Bxf5 {[%clk 0:00:36]}  Rb5 {[%clk 0:00:14]} 46. g4 {[%clk 0:00:34]}  Kh8 {[%clk 0:00:15]} 47. Ke4 {[%clk 0:00:34]}  Rb7 {[%clk 0:00:14]} 48. Kd5 {[%clk 0:00:33]}  Re7 {[%clk 0:00:14]} 49. Bc5 {[%clk 0:00:33]}  Rb7 {[%clk 0:00:13]} 50. Kc4 {[%clk 0:00:33]}  Rc7 {[%clk 0:00:13]} 51. Kxb4 {[%clk 0:00:33]}  Rb7+ {[%clk 0:00:13]} 52. Kc4 {[%clk 0:00:33]}  Rb8 {[%clk 0:00:14]} 53. b4 {[%clk 0:00:34]}  g5 {[%clk 0:00:15]} 54. b5 {[%clk 0:00:33]}  Kg7 {[%clk 0:00:13]} 55. b6 {[%clk 0:00:33]}  Kf6 {[%clk 0:00:10]} 56. Kb5 {[%clk 0:00:33]}  Ke5 {[%clk 0:00:10]} 57. c4 {[%clk 0:00:33]}  Kf6 {[%clk 0:00:09]} 58. Bd6 {[%clk 0:00:33]}  Rd8 {[%clk 0:00:08]} 59. c5 {[%clk 0:00:33]}  Kf7 {[%clk 0:00:08]} 60. b7 {[%clk 0:00:33]}  Kg7 {[%clk 0:00:08]} 61. b8=Q {[%clk 0:00:33]}  Rxb8+ {[%clk 0:00:08]} 62. Bxb8 {[%clk 0:00:33]}  Kh8 {[%clk 0:00:07]} 63. c6 {[%clk 0:00:32]}  Kg7 {[%clk 0:00:08]} 64. c7 {[%clk 0:00:33]}  Kh8 {[%clk 0:00:09]} 65. c8=Q+ {[%clk 0:00:33]}  Kg7 {[%clk 0:00:10]} 66. Be5+ {[%clk 0:00:33]}  Kf7 {[%clk 0:00:10]} 67. Qd7+ {[%clk 0:00:33]}  Kg8 {[%clk 0:00:10]} 68. Be6+ {[%clk 0:00:31]}  Kf8 {[%clk 0:00:09]} 69. Bd6# {[%clk 0:00:32]} 1-0

[Event "January 9 Late 2024"]
[Site "https://www.chess.com"]
[Date "2024.01.09"]
[Round "7"]
[White "Grigoriants, Sergey"]
[Black "Goryachkina, Aleksandra"]
[Result "0-1"]
[Board "35"]
[TimeControl "180+1"]
[WhiteFideId "4130804"]
[BlackFideId "4147103"]
[WhiteElo "2888"]
[BlackElo "2647"]
[WhiteTeam "HUN"]
[BlackTeam "FID"]
[WhiteClock "0:00:00"]
[BlackClock "0:00:05"]

1. e4 {[%clk 0:02:53]}  c5 {[%clk 0:02:59]} 2. Nf3 {[%clk 0:02:53]}  e6 {[%clk 0:03:00]} 3. c3 {[%clk 0:02:49]}  d5 {[%clk 0:02:59]} 4. e5 {[%clk 0:02:40]}  Nc6 {[%clk 0:02:59]} 5. d4 {[%clk 0:02:40]}  Nge7 {[%clk 0:02:59]} 6. Na3 {[%clk 0:02:30]}  Bd7 {[%clk 0:02:58]} 7. Nc2 {[%clk 0:02:30]}  Qa5 {[%clk 0:02:58]} 8. a3 {[%clk 0:02:15]}  Ng6 {[%clk 0:02:48]} 9. Bd3 {[%clk 0:02:02]}  c4 {[%clk 0:02:26]} 10. Be2 {[%clk 0:02:00]}  Be7 {[%clk 0:02:24]} 11. h4 {[%clk 0:01:57]}  h6 {[%clk 0:02:20]} 12. h5 {[%clk 0:01:54]}  Nf8 {[%clk 0:02:20]} 13. O-O {[%clk 0:01:44]}  g6 {[%clk 0:02:09]} 14. Nh2 {[%clk 0:01:42]}  O-O-O {[%clk 0:01:58]} 15. Bf4 {[%clk 0:01:37]}  gxh5 {[%clk 0:01:43]} 16. Bxh5 {[%clk 0:01:35]}  Ng6 {[%clk 0:01:42]} 17. Bg3 {[%clk 0:01:35]}  Rdg8 {[%clk 0:01:42]} 18. Ng4 {[%clk 0:01:31]}  Nh4 {[%clk 0:01:10]} 19. Nf6 {[%clk 0:01:08]}  Bxf6 {[%clk 0:01:03]} 20. exf6 {[%clk 0:01:09]}  Nf5 {[%clk 0:01:03]} 21. Bh2 {[%clk 0:01:07]}  Nh4 {[%clk 0:00:48]} 22. Ne3 {[%clk 0:00:55]}  Qd8 {[%clk 0:00:46]} 23. Bxf7 {[%clk 0:00:49]}  Rf8 {[%clk 0:00:43]} 24. Bh5 {[%clk 0:00:33]}  Qxf6 {[%clk 0:00:42]} 25. Bg4 {[%clk 0:00:22]}  Rhg8 {[%clk 0:00:40]} 26. Kh1 {[%clk 0:00:21]}  h5 {[%clk 0:00:29]} 27. Bh3 {[%clk 0:00:21]}  Qg5 {[%clk 0:00:29]} 28. Qe2 {[%clk 0:00:18]}  Ne7 {[%clk 0:00:22]} 29. f4 {[%clk 0:00:15]}  Qf6 {[%clk 0:00:20]} 30. f5 {[%clk 0:00:15]}  Nhxf5 {[%clk 0:00:12]} 31. Nxf5 {[%clk 0:00:07]}  Nxf5 {[%clk 0:00:08]} 32. Bxf5 {[%clk 0:00:04]}  exf5 {[%clk 0:00:08]} 33. Rae1 {[%clk 0:00:04]}  b6 {[%clk 0:00:08]} 34. Qf3 {[%clk 0:00:04]}  Bc6 {[%clk 0:00:06]} 35. Qf4 {[%clk 0:00:04]}  Kb7 {[%clk 0:00:05]} 36. Re7+ {[%clk 0:00:00]}  Qxe7 {[%clk 0:00:05]} 0-1

[Event "January 9 Late 2024"]
[Site "https://www.chess.com"]
[Date "2024.01.09"]
[Round "7"]
[White "Kuzubov, Yuriy"]
[Black "Lizak, Peter"]
[Result "1-0"]
[Board "36"]
[TimeControl "180+1"]
[WhiteFideId "14112906"]
[BlackFideId "731595"]
[WhiteElo "2881"]
[BlackElo "2638"]
[WhiteTeam "UKR"]
[BlackTeam "HUN"]
[WhiteClock "0:00:49"]
[BlackClock "0:00:10"]

1. d4 {[%clk 0:03:00]}  Nf6 {[%clk 0:02:59]} 2. Nf3 {[%clk 0:03:01]}  c5 {[%clk 0:02:59]} 3. e3 {[%clk 0:03:00]}  d5 {[%clk 0:03:00]} 4. Bd3 {[%clk 0:02:58]}  Nc6 {[%clk 0:02:59]} 5. O-O {[%clk 0:02:57]}  cxd4 {[%clk 0:02:59]} 6. exd4 {[%clk 0:02:57]}  Bg4 {[%clk 0:02:59]} 7. c3 {[%clk 0:02:56]}  e6 {[%clk 0:03:00]} 8. Nbd2 {[%clk 0:02:53]}  Bd6 {[%clk 0:03:00]} 9. Re1 {[%clk 0:02:52]}  O-O {[%clk 0:02:58]} 10. Nf1 {[%clk 0:02:53]}  Qc7 {[%clk 0:02:57]} 11. Ng3 {[%clk 0:02:52]}  e5 {[%clk 0:02:49]} 12. dxe5 {[%clk 0:02:50]}  Nxe5 {[%clk 0:02:48]} 13. Be2 {[%clk 0:02:49]}  Bxf3 {[%clk 0:02:29]} 14. Bxf3 {[%clk 0:02:50]}  Nxf3+ {[%clk 0:02:28]} 15. Qxf3 {[%clk 0:02:51]}  Bxg3 {[%clk 0:02:22]} 16. Qxg3 {[%clk 0:02:49]}  Qxg3 {[%clk 0:02:22]} 17. hxg3 {[%clk 0:02:49]}  Rfe8 {[%clk 0:02:22]} 18. Be3 {[%clk 0:02:47]}  a6 {[%clk 0:02:12]} 19. f3 {[%clk 0:02:47]}  Re6 {[%clk 0:02:07]} 20. Kf2 {[%clk 0:02:42]}  Rae8 {[%clk 0:02:07]} 21. Rad1 {[%clk 0:02:42]}  h5 {[%clk 0:02:02]} 22. a4 {[%clk 0:02:37]}  g6 {[%clk 0:01:57]} 23. Rd3 {[%clk 0:02:33]}  Re5 {[%clk 0:01:47]} 24. Re2 {[%clk 0:02:27]}  Rf5 {[%clk 0:01:35]} 25. Bd4 {[%clk 0:02:13]}  Re6 {[%clk 0:01:04]} 26. Ke1 {[%clk 0:02:11]}  Kf8 {[%clk 0:00:55]} 27. Rde3 {[%clk 0:02:03]}  Rxe3 {[%clk 0:00:51]} 28. Rxe3 {[%clk 0:02:01]}  Nd7 {[%clk 0:00:42]} 29. b4 {[%clk 0:01:56]}  g5 {[%clk 0:00:42]} 30. Kd2 {[%clk 0:01:51]}  g4 {[%clk 0:00:42]} 31. f4 {[%clk 0:01:49]}  h4 {[%clk 0:00:39]} 32. gxh4 {[%clk 0:01:46]}  Rxf4 {[%clk 0:00:39]} 33. Ke2 {[%clk 0:01:39]}  Nf6 {[%clk 0:00:31]} 34. g3 {[%clk 0:01:03]}  Rf5 {[%clk 0:00:30]} 35. Re5 {[%clk 0:01:02]}  Rf3 {[%clk 0:00:24]} 36. Re3 {[%clk 0:01:02]}  Rf5 {[%clk 0:00:22]} 37. Bxf6 {[%clk 0:00:56]}  Rxf6 {[%clk 0:00:22]} 38. Rd3 {[%clk 0:00:56]}  Rc6 {[%clk 0:00:16]} 39. Ke3 {[%clk 0:00:54]}  Ke7 {[%clk 0:00:15]} 40. Kf4 {[%clk 0:00:50]}  Rc4+ {[%clk 0:00:14]} 41. Kf5 {[%clk 0:00:50]}  Kd6 {[%clk 0:00:14]} 42. h5 {[%clk 0:00:50]}  Rc8 {[%clk 0:00:14]} 43. Kxg4 {[%clk 0:00:50]}  Rg8+ {[%clk 0:00:15]} 44. Kf5 {[%clk 0:00:49]}  Rh8 {[%clk 0:00:10]} 45. g4 {[%clk 0:00:49]} 1-0

[Event "January 9 Late 2024"]
[Site "https://www.chess.com"]
[Date "2024.01.09"]
[Round "7"]
[White "Al-Tarboush, Ward"]
[Black "Santos Latasa, Jaime"]
[Result "0-1"]
[Board "37"]
[TimeControl "180+1"]
[WhiteFideId "7601450"]
[BlackFideId "2293307"]
[WhiteElo "2628"]
[BlackElo "2881"]
[WhiteTeam "NOR"]
[BlackTeam "ESP"]
[WhiteClock "0:00:30"]
[BlackClock "0:01:35"]

1. e4 {[%clk 0:03:00]}  c5 {[%clk 0:02:59]} 2. Nf3 {[%clk 0:03:01]}  Nc6 {[%clk 0:02:59]} 3. d4 {[%clk 0:03:01]}  cxd4 {[%clk 0:03:00]} 4. Nxd4 {[%clk 0:03:02]}  Nf6 {[%clk 0:03:01]} 5. Nc3 {[%clk 0:03:02]}  h5 {[%clk 0:03:01]} 6. h3 {[%clk 0:03:00]}  e5 {[%clk 0:02:59]} 7. Ndb5 {[%clk 0:02:58]}  d6 {[%clk 0:02:59]} 8. Bg5 {[%clk 0:02:58]}  a6 {[%clk 0:02:57]} 9. Na3 {[%clk 0:02:57]}  Be7 {[%clk 0:02:49]} 10. Nc4 {[%clk 0:02:49]}  Be6 {[%clk 0:02:48]} 11. Bxf6 {[%clk 0:02:26]}  Bxf6 {[%clk 0:02:48]} 12. Nxd6+ {[%clk 0:02:24]}  Kf8 {[%clk 0:02:47]} 13. Nf5 {[%clk 0:01:59]}  Qb6 {[%clk 0:02:43]} 14. Qd6+ {[%clk 0:01:58]}  Kg8 {[%clk 0:02:42]} 15. O-O-O {[%clk 0:01:18]}  Rd8 {[%clk 0:02:37]} 16. Qa3 {[%clk 0:01:13]}  Qxf2 {[%clk 0:02:28]} 17. Rxd8+ {[%clk 0:01:10]}  Bxd8 {[%clk 0:02:29]} 18. Bd3 {[%clk 0:01:02]}  g6 {[%clk 0:02:26]} 19. Nd6 {[%clk 0:00:58]}  Be7 {[%clk 0:02:22]} 20. Nd5 {[%clk 0:00:53]}  Bxd5 {[%clk 0:01:57]} 21. exd5 {[%clk 0:00:53]}  Nd4 {[%clk 0:01:56]} 22. Rf1 {[%clk 0:00:51]}  Ne2+ {[%clk 0:01:37]} 23. Bxe2 {[%clk 0:00:49]}  Qxe2 {[%clk 0:01:38]} 24. Rd1 {[%clk 0:00:30]}  Bg5+ {[%clk 0:01:35]} 0-1

[Event "January 9 Late 2024"]
[Site "https://www.chess.com"]
[Date "2024.01.09"]
[Round "7"]
[White "Baltag, Iulian"]
[Black "Maksimovic, Bojan"]
[Result "0-1"]
[Board "42"]
[TimeControl "180+1"]
[WhiteFideId "13901419"]
[BlackFideId "14408120"]
[WhiteElo "2603"]
[BlackElo "2842"]
[WhiteTeam "MDA"]
[BlackTeam "BIH"]
[WhiteClock "0:00:00"]
[BlackClock "0:01:04"]

1. e4 {[%clk 0:03:00]}  a6 {[%clk 0:03:00]} 2. d4 {[%clk 0:03:00]}  e6 {[%clk 0:03:01]} 3. Bd3 {[%clk 0:03:00]}  d5 {[%clk 0:03:01]} 4. e5 {[%clk 0:02:57]}  c5 {[%clk 0:03:01]} 5. c3 {[%clk 0:02:57]}  Bd7 {[%clk 0:03:02]} 6. Nf3 {[%clk 0:02:56]}  cxd4 {[%clk 0:03:02]} 7. cxd4 {[%clk 0:02:55]}  Bb5 {[%clk 0:03:02]} 8. Bxb5+ {[%clk 0:02:53]}  axb5 {[%clk 0:03:03]} 9. O-O {[%clk 0:02:53]}  Nc6 {[%clk 0:03:04]} 10. Qe2 {[%clk 0:02:52]}  Qb6 {[%clk 0:03:03]} 11. Be3 {[%clk 0:02:40]}  Nge7 {[%clk 0:03:02]} 12. Nbd2 {[%clk 0:02:40]}  Nf5 {[%clk 0:03:02]} 13. Nb3 {[%clk 0:02:41]}  Be7 {[%clk 0:02:57]} 14. g4 {[%clk 0:02:39]}  Nxe3 {[%clk 0:02:56]} 15. fxe3 {[%clk 0:02:39]}  O-O {[%clk 0:02:57]} 16. h4 {[%clk 0:02:22]}  Ra4 {[%clk 0:02:56]} 17. g5 {[%clk 0:02:16]}  Na5 {[%clk 0:02:55]} 18. Nc1 {[%clk 0:02:15]}  Rc4 {[%clk 0:02:44]} 19. Nd3 {[%clk 0:02:08]}  Rfc8 {[%clk 0:02:44]} 20. b3 {[%clk 0:01:57]}  Rc2 {[%clk 0:02:44]} 21. Qe1 {[%clk 0:01:57]}  R8c3 {[%clk 0:02:33]} 22. Nf4 {[%clk 0:01:53]}  Nc6 {[%clk 0:02:24]} 23. h5 {[%clk 0:01:42]}  g6 {[%clk 0:02:04]} 24. Rf2 {[%clk 0:01:32]}  Rxf2 {[%clk 0:01:45]} 25. Qxf2 {[%clk 0:01:33]}  Qd8 {[%clk 0:01:45]} 26. Ne2 {[%clk 0:00:59]}  Rc2 {[%clk 0:01:36]} 27. Ne1 {[%clk 0:00:51]}  Rb2 {[%clk 0:01:33]} 28. hxg6 {[%clk 0:00:40]}  hxg6 {[%clk 0:01:33]} 29. Nd3 {[%clk 0:00:37]}  Rd2 {[%clk 0:01:33]} 30. Qe1 {[%clk 0:00:12]}  Rxd3 {[%clk 0:01:32]} 31. Nf4 {[%clk 0:00:12]}  Nb4 {[%clk 0:01:22]} 32. Nxd3 {[%clk 0:00:10]}  Nxd3 {[%clk 0:01:23]} 33. Qd2 {[%clk 0:00:10]}  Nb4 {[%clk 0:01:23]} 34. Qe2 {[%clk 0:00:10]}  Bxg5 {[%clk 0:01:21]} 35. Kg2 {[%clk 0:00:10]}  Qc7 {[%clk 0:01:13]} 36. a3 {[%clk 0:00:10]}  Nc2 {[%clk 0:01:03]} 37. Rc1 {[%clk 0:00:09]}  Nxe3+ {[%clk 0:01:03]} 38. Qxe3 {[%clk 0:00:00]}  Qxc1 {[%clk 0:01:04]} 0-1

[Event "January 9 Late 2024"]
[Site "https://www.chess.com"]
[Date "2024.01.09"]
[Round "7"]
[White "Mikaelyan, Arman"]
[Black "Sowa, Ryan"]
[Result "1-0"]
[Board "43"]
[TimeControl "180+1"]
[WhiteFideId "13304852"]
[BlackFideId "30901693"]
[WhiteElo "2838"]
[BlackElo "2596"]
[WhiteTeam "ARM"]
[BlackTeam "USA"]
[WhiteClock "0:00:23"]
[BlackClock "0:02:08"]

1. d4 {[%clk 0:03:00]}  b6 {[%clk 0:03:00]} 2. e4 {[%clk 0:02:59]}  Bb7 {[%clk 0:03:01]} 3. Bd3 {[%clk 0:03:00]}  e6 {[%clk 0:03:01]} 4. Ne2 {[%clk 0:02:58]}  c5 {[%clk 0:02:59]} 5. c3 {[%clk 0:02:48]}  Nf6 {[%clk 0:02:59]} 6. e5 {[%clk 0:02:45]}  Nd5 {[%clk 0:02:58]} 7. O-O {[%clk 0:02:42]}  cxd4 {[%clk 0:02:56]} 8. cxd4 {[%clk 0:02:43]}  d6 {[%clk 0:02:51]} 9. Nbc3 {[%clk 0:02:26]}  Nxc3 {[%clk 0:02:44]} 10. Nxc3 {[%clk 0:02:27]}  dxe5 {[%clk 0:02:44]} 11. dxe5 {[%clk 0:02:26]}  Be7 {[%clk 0:02:44]} 12. Be3 {[%clk 0:02:06]}  O-O {[%clk 0:02:43]} 13. Qc2 {[%clk 0:01:44]}  g6 {[%clk 0:02:41]} 14. Rfd1 {[%clk 0:01:44]}  Qc7 {[%clk 0:02:39]} 15. Nd5 {[%clk 0:01:34]}  Qd8 {[%clk 0:02:30]} 16. Nc7 {[%clk 0:00:51]}  Nd7 {[%clk 0:02:30]} 17. Nxa8 {[%clk 0:00:49]}  Qxa8 {[%clk 0:02:31]} 18. Bxg6 {[%clk 0:00:46]}  hxg6 {[%clk 0:02:24]} 19. Rxd7 {[%clk 0:00:46]}  Bxg2 {[%clk 0:02:14]} 20. Rxe7 {[%clk 0:00:42]}  Bh1 {[%clk 0:02:15]} 21. f3 {[%clk 0:00:35]}  Qxf3 {[%clk 0:02:15]} 22. Qf2 {[%clk 0:00:31]}  Qg4+ {[%clk 0:02:15]} 23. Kxh1 {[%clk 0:00:30]}  Qe4+ {[%clk 0:02:10]} 24. Kg1 {[%clk 0:00:30]}  Qg4+ {[%clk 0:02:11]} 25. Qg2 {[%clk 0:00:29]}  Qh4 {[%clk 0:02:08]} 26. Rd7 {[%clk 0:00:23]} 1-0

[Event "January 9 Late 2024"]
[Site "https://www.chess.com"]
[Date "2024.01.09"]
[Round "7"]
[White "Lagarde, Maxime"]
[Black "Tulchynskyi, Feliks"]
[Result "1-0"]
[Board "46"]
[TimeControl "180+1"]
[WhiteFideId "662399"]
[BlackFideId "34127895"]
[WhiteElo "2833"]
[BlackElo "2579"]
[WhiteTeam "FRA"]
[BlackTeam "UKR"]
[WhiteClock "0:01:21"]
[BlackClock "0:00:17"]

1. d4 {[%clk 0:03:00]}  Nf6 {[%clk 0:02:49]} 2. Nf3 {[%clk 0:03:01]}  d5 {[%clk 0:02:49]} 3. Bf4 {[%clk 0:03:00]}  Bf5 {[%clk 0:02:47]} 4. c4 {[%clk 0:02:59]}  dxc4 {[%clk 0:02:47]} 5. Nc3 {[%clk 0:02:56]}  c6 {[%clk 0:02:46]} 6. Nh4 {[%clk 0:02:50]}  Bg6 {[%clk 0:02:44]} 7. Nxg6 {[%clk 0:02:48]}  hxg6 {[%clk 0:02:45]} 8. e4 {[%clk 0:02:48]}  b5 {[%clk 0:02:40]} 9. a3 {[%clk 0:02:39]}  e6 {[%clk 0:02:38]} 10. Be2 {[%clk 0:02:37]}  a6 {[%clk 0:02:36]} 11. O-O {[%clk 0:02:36]}  Nbd7 {[%clk 0:02:35]} 12. Bf3 {[%clk 0:02:30]}  Be7 {[%clk 0:02:29]} 13. Re1 {[%clk 0:02:25]}  O-O {[%clk 0:02:26]} 14. h4 {[%clk 0:02:23]}  Nb6 {[%clk 0:02:18]} 15. g4 {[%clk 0:02:17]}  c5 {[%clk 0:02:07]} 16. g5 {[%clk 0:02:15]}  Nh5 {[%clk 0:01:55]} 17. Bxh5 {[%clk 0:02:14]}  gxh5 {[%clk 0:01:56]} 18. d5 {[%clk 0:02:08]}  exd5 {[%clk 0:01:54]} 19. Nxd5 {[%clk 0:02:03]}  Nxd5 {[%clk 0:01:47]} 20. Qxd5 {[%clk 0:02:04]}  Re8 {[%clk 0:01:40]} 21. Rad1 {[%clk 0:01:52]}  Qxd5 {[%clk 0:01:39]} 22. exd5 {[%clk 0:01:51]}  Bf8 {[%clk 0:01:38]} 23. Rxe8 {[%clk 0:01:44]}  Rxe8 {[%clk 0:01:39]} 24. d6 {[%clk 0:01:44]}  Re2 {[%clk 0:01:19]} 25. d7 {[%clk 0:01:39]}  Be7 {[%clk 0:01:19]} 26. g6 {[%clk 0:01:32]}  Bd8 {[%clk 0:00:45]} 27. Bc7 {[%clk 0:01:31]}  Rxb2 {[%clk 0:00:22]} 28. Bxd8 {[%clk 0:01:29]}  c3 {[%clk 0:00:23]} 29. Bf6 {[%clk 0:01:22]}  fxg6 {[%clk 0:00:19]} 30. d8=Q+ {[%clk 0:01:23]}  Kh7 {[%clk 0:00:17]} 31. Qe7 {[%clk 0:01:21]} 1-0

[Event "January 9 Late 2024"]
[Site "https://www.chess.com"]
[Date "2024.01.09"]
[Round "7"]
[White "Yurasov, Matfey"]
[Black "Krzyzanowski, Marcin"]
[Result "0-1"]
[Board "49"]
[TimeControl "180+1"]
[WhiteFideId "55617603"]
[BlackFideId "1132199"]
[WhiteElo "2566"]
[BlackElo "2774"]
[WhiteTeam "FID"]
[BlackTeam "POL"]
[WhiteClock "0:00:00"]
[BlackClock "0:00:54"]

1. e4 {[%clk 0:03:00]}  e6 {[%clk 0:03:00]} 2. d3 {[%clk 0:02:59]}  d5 {[%clk 0:03:01]} 3. Nd2 {[%clk 0:02:58]}  c5 {[%clk 0:03:02]} 4. Ngf3 {[%clk 0:02:57]}  Nc6 {[%clk 0:03:01]} 5. g3 {[%clk 0:02:56]}  Nf6 {[%clk 0:03:01]} 6. Bg2 {[%clk 0:02:55]}  dxe4 {[%clk 0:03:02]} 7. dxe4 {[%clk 0:02:54]}  Qc7 {[%clk 0:03:02]} 8. O-O {[%clk 0:02:52]}  Be7 {[%clk 0:02:59]} 9. Re1 {[%clk 0:02:53]}  O-O {[%clk 0:02:59]} 10. e5 {[%clk 0:02:51]}  Nd7 {[%clk 0:02:59]} 11. Qe2 {[%clk 0:02:49]}  Nd4 {[%clk 0:02:55]} 12. Nxd4 {[%clk 0:02:48]}  cxd4 {[%clk 0:02:56]} 13. Nf3 {[%clk 0:02:47]}  Bc5 {[%clk 0:02:43]} 14. Ng5 {[%clk 0:02:44]}  h6 {[%clk 0:02:43]} 15. Ne4 {[%clk 0:02:36]}  Be7 {[%clk 0:02:40]} 16. Bf4 {[%clk 0:02:32]}  Nxe5 {[%clk 0:02:34]} 17. Nd2 {[%clk 0:02:28]}  f6 {[%clk 0:02:35]} 18. Bxe5 {[%clk 0:02:26]}  Qxe5 {[%clk 0:02:34]} 19. Qxe5 {[%clk 0:02:25]}  fxe5 {[%clk 0:02:35]} 20. Nc4 {[%clk 0:02:25]}  Bf6 {[%clk 0:02:30]} 21. Nxe5 {[%clk 0:02:24]}  Rd8 {[%clk 0:02:31]} 22. Rad1 {[%clk 0:02:22]}  a5 {[%clk 0:02:32]} 23. Nd3 {[%clk 0:02:06]}  Ra6 {[%clk 0:02:30]} 24. Nc5 {[%clk 0:02:06]}  Rb6 {[%clk 0:02:30]} 25. b3 {[%clk 0:02:05]}  e5 {[%clk 0:02:31]} 26. h3 {[%clk 0:02:02]}  Bf5 {[%clk 0:02:27]} 27. Re2 {[%clk 0:02:00]}  Rc8 {[%clk 0:02:26]} 28. Ne4 {[%clk 0:01:57]}  a4 {[%clk 0:02:26]} 29. g4 {[%clk 0:01:57]}  Bh7 {[%clk 0:02:26]} 30. Rde1 {[%clk 0:01:42]}  axb3 {[%clk 0:02:24]} 31. axb3 {[%clk 0:01:41]}  Be7 {[%clk 0:02:18]} 32. Ra1 {[%clk 0:01:22]}  Rbc6 {[%clk 0:02:10]} 33. Ra2 {[%clk 0:01:21]}  R6c7 {[%clk 0:02:08]} 34. Ra5 {[%clk 0:01:09]}  Rxc2 {[%clk 0:02:04]} 35. Rxc2 {[%clk 0:01:08]}  Rxc2 {[%clk 0:02:05]} 36. Rxe5 {[%clk 0:01:07]}  Rc1+ {[%clk 0:01:46]} 37. Kh2 {[%clk 0:00:56]}  Kf7 {[%clk 0:01:34]} 38. Rd5 {[%clk 0:00:46]}  Rd1 {[%clk 0:01:30]} 39. Rd7 {[%clk 0:00:30]}  Ke6 {[%clk 0:01:12]} 40. Rxb7 {[%clk 0:00:30]}  d3 {[%clk 0:01:13]} 41. f4 {[%clk 0:00:25]}  Bxe4 {[%clk 0:01:04]} 42. Bxe4 {[%clk 0:00:25]}  d2 {[%clk 0:01:04]} 43. f5+ {[%clk 0:00:02]}  Kd6 {[%clk 0:01:00]} 44. Rb6+ {[%clk 0:00:01]}  Ke5 {[%clk 0:00:59]} 45. Bf3 {[%clk 0:00:01]}  Re1 {[%clk 0:00:54]} 46. Re6+ {[%clk 0:00:00]}  Kf4 {[%clk 0:00:54]} 0-1

[Event "January 9 Late 2024"]
[Site "https://www.chess.com"]
[Date "2024.01.09"]
[Round "7"]
[White "Adewumi, Tanitoluwa"]
[Black "Garrido Diaz, Jose Antonio"]
[Result "1-0"]
[Board "61"]
[TimeControl "180+1"]
[WhiteFideId "30966396"]
[BlackFideId "24516252"]
[WhiteElo "2710"]
[BlackElo "2473"]
[WhiteTeam "USA"]
[BlackTeam "ESP"]
[WhiteClock "0:02:36"]
[BlackClock "0:02:24"]

1. e4 {[%clk 0:03:00]}  c5 {[%clk 0:02:59]} 2. Nf3 {[%clk 0:02:51]}  d6 {[%clk 0:02:59]} 3. Bb5+ {[%clk 0:02:40]}  Bd7 {[%clk 0:02:57]} 4. Bxd7+ {[%clk 0:02:40]}  Qxd7 {[%clk 0:02:58]} 5. O-O {[%clk 0:02:40]}  Nc6 {[%clk 0:02:57]} 6. c3 {[%clk 0:02:39]}  Nf6 {[%clk 0:02:55]} 7. d4 {[%clk 0:02:35]}  cxd4 {[%clk 0:02:54]} 8. cxd4 {[%clk 0:02:36]}  Nxe4 {[%clk 0:02:53]} 9. d5 {[%clk 0:02:36]}  Ne5 {[%clk 0:02:51]} 10. Re1 {[%clk 0:02:36]}  Nxf3+ {[%clk 0:02:49]} 11. Qxf3 {[%clk 0:02:36]}  Nf6 {[%clk 0:02:45]} 12. Nc3 {[%clk 0:02:36]}  g6 {[%clk 0:02:43]} 13. Qxf6 {[%clk 0:02:36]}  Rg8 {[%clk 0:02:38]} 14. Bg5 {[%clk 0:02:36]}  O-O-O {[%clk 0:02:24]} 15. Qxf7 {[%clk 0:02:36]} 1-0